{"text_format":"3","workbook":"xlsx","n_sheets":2,"sheets":["Протокол ШЭ ВОШ по предмету","Лист2"],"not_rendered":{"defined_names":1},"read":"whole","date_system":"1900"}

{"sheet":"Протокол ШЭ ВОШ по предмету","index":0,"n_rows":101,"n_cols":15,"rows_kept":101}
["№","Фамилия","Имя","Отчество","Дата рождения","Пол","Участник с ОВЗ (да/нет)","Класс обучения","Класс участия","Балл","Максимальный балл","Статус","Призёр муниципального этапа прошлого года","ФИО учителя","Место работы учителя"]
[1,"Новикова ","Алена ","Артёмовна","2011-08-03","ж","нет",4,4,46,53,"победитель","нет","Гайнутдинова Раиля Амирзяновна","Муниципальное бюджетное общеобразовательное учреждение \"Многопрофильный лицей №37\" г.Нижнекамска Республики Татарстан"]
[{"$f":"A2+1","v":2},"Черемисина","София","Андреевна","2011-09-16","ж","нет",4,4,45,53,"призер","нет","Сальлева Татьяна Ивановна","Муниципальное бюджетное общеобразовательное учреждение \"Многопрофильный лицей №37\" г.Нижнекамска Республики Татарстан"]
[{"$f":"A3+1","v":3},"Багаутдинова ","Аделя","Ильнаровна","2011-11-19","ж","нет",4,4,43,53,"призер","нет","Сальлева Татьяна Ивановна","Муниципальное бюджетное общеобразовательное учреждение \"Многопрофильный лицей №37\" г.Нижнекамска Республики Татарстан"]
[4,"Артемьев ","Даниил ","Александрович ","2011-03-10","м","нет",4,4,42,53,"участник","нет","Гайнутдинова Раиля Амирзяновна","Муниципальное бюджетное общеобразовательное учреждение \"Многопрофильный лицей №37\" г.Нижнекамска Республики Татарстан"]
[5,"Галимов"," Райхан ","Ильшатович ","2011-05-25","м","нет",4,4,39,53,"участник","нет","Гайнутдинова Раиля Амирзяновна","Муниципальное бюджетное общеобразовательное учреждение \"Многопрофильный лицей №37\" г.Нижнекамска Республики Татарстан"]
[6,"Бикмурзин ","Амир","Айдарович","2011-07-21","м","нет",4,4,36,53,"участник","нет","Сальлева Татьяна Ивановна","Муниципальное бюджетное общеобразовательное учреждение \"Многопрофильный лицей №37\" г.Нижнекамска Республики Татарстан"]
[7,"Низамова ","Алина ","Хамитовна ","2011-06-28","ж","нет",4,4,34,53,"участник","нет","Гайнутдинова Раиля Амирзяновна","Муниципальное бюджетное общеобразовательное учреждение \"Многопрофильный лицей №37\" г.Нижнекамска Республики Татарстан"]
[8,"Голованова","Аделина","Эдуардовна","2011-09-18","ж","нет",4,4,34,53,"участник","нет","Сальлева Татьяна Ивановна","Муниципальное бюджетное общеобразовательное учреждение \"Многопрофильный лицей №37\" г.Нижнекамска Республики Татарстан"]
[9,"Ибнагимова","Камилла","Руслановна","2011-08-18","ж","нет",4,4,33,53,"участник","нет","Сальлева Татьяна Ивановна","Муниципальное бюджетное общеобразовательное учреждение \"Многопрофильный лицей №37\" г.Нижнекамска Республики Татарстан"]
[{"$f":"A10+1","v":10},"Мингараева","Аделя","Ленаровна","2011-10-14","ж","нет",4,4,31,53,"участник","нет","Сальлева Татьяна Ивановна","Муниципальное бюджетное общеобразовательное учреждение \"Многопрофильный лицей №37\" г.Нижнекамска Республики Татарстан"]
[11,"Закиров ","Адель ","Ильдусович"," 31.01.2011 ","м","нет",4,4,29,53,"участник","нет","Гайнутдинова Раиля Амирзяновна","Муниципальное бюджетное общеобразовательное учреждение \"Многопрофильный лицей №37\" г.Нижнекамска Республики Татарстан"]
[12,"Нагимов","Расул","Ильшатович","2011-01-20","м","нет",4,4,29,53,"участник","нет","Сальлева Татьяна Ивановна","Муниципальное бюджетное общеобразовательное учреждение \"Многопрофильный лицей №37\" г.Нижнекамска Республики Татарстан"]
[13,"Поляков ","Семён","Сергеевич","2011-04-03","м","нет",4,4,28,53,"участник","нет","Сальлева Татьяна Ивановна","Муниципальное бюджетное общеобразовательное учреждение \"Многопрофильный лицей №37\" г.Нижнекамска Республики Татарстан"]
[14,"Бадертдинова ","Алина ","Петровна ","2011-06-19","ж","нет",4,4,27,53,"участник","нет","Гайнутдинова Раиля Амирзяновна","Муниципальное бюджетное общеобразовательное учреждение \"Многопрофильный лицей №37\" г.Нижнекамска Республики Татарстан"]
[15,"Саитова","Динара","Эдуардовна","2011-01-16","ж","нет",4,4,25,53,"участник","нет","Сальлева Татьяна Ивановна","Муниципальное бюджетное общеобразовательное учреждение \"Многопрофильный лицей №37\" г.Нижнекамска Республики Татарстан"]
[16,"Сахабиев","Руслан","Рустамович","2010-12-08","м","нет",4,4,37,53,"участник","нет","Сальлева Татьяна Ивановна","Муниципальное бюджетное общеобразовательное учреждение \"Многопрофильный лицей №37\" г.Нижнекамска Республики Татарстан"]
[17,"Ярмиева ","Риана","Атласовна","2011-04-04","ж","нет",4,4,35,53,"участник","нет","Сальлева Татьяна Ивановна","Муниципальное бюджетное общеобразовательное учреждение \"Многопрофильный лицей №37\" г.Нижнекамска Республики Татарстан"]
[18,"Шарипянов","Амир","Ниязович","2011-09-22","м","нет",4,4,28,53,"участник","нет","Сальлева Татьяна Ивановна","Муниципальное бюджетное общеобразовательное учреждение \"Многопрофильный лицей №37\" г.Нижнекамска Республики Татарстан"]
[19,"Валиуллина ","Аделя ","Ильгамовна"," 27.06.2011","ж","нет",4,4,25,53,"участник","нет","Гайнутдинова Раиля Амирзяновна","Муниципальное бюджетное общеобразовательное учреждение \"Многопрофильный лицей №37\" г.Нижнекамска Республики Татарстан"]
[20,"Сабирова ","Элина ","Эльмировна ","2011-07-03","ж","нет",4,4,24,53,"участник","нет","Гайнутдинова Раиля Амирзяновна","Муниципальное бюджетное общеобразовательное учреждение \"Многопрофильный лицей №37\" г.Нижнекамска Республики Татарстан"]
[21,"Шигабетдинов ","Радмир","Ирекович","2011-03-17","м","нет",4,4,24,53,"участник","нет","Сальлева Татьяна Ивановна","Муниципальное бюджетное общеобразовательное учреждение \"Многопрофильный лицей №37\" г.Нижнекамска Республики Татарстан"]
[22,"Судаков","Давид","Артурович","2011-02-07","м","нет",4,4,14,53,"участник","нет","Сальлева Татьяна Ивановна","Муниципальное бюджетное общеобразовательное учреждение \"Многопрофильный лицей №37\" г.Нижнекамска Республики Татарстан"]
[23,"Бусыгина","Анна","Алексеевна","2010-07-29","ж","нет",5,5,44,63,"победитель","нет","Гильмуллина Гулия Рашатовна","Муниципальное бюджетное общеобразовательное учреждение \"Многопрофильный лицей №37\" г.Нижнекамска Республики Татарстан"]
[{"$f":"A24+1","v":24},"Николаева","Ангелина","Алексеевна","2010-01-19","ж","нет",5,5,39,63,"призёр","нет","Гильмуллина Гулия Рашатовна","Муниципальное бюджетное общеобразовательное учреждение \"Многопрофильный лицей №37\" г.Нижнекамска Республики Татарстан"]
[25,"Габдуллина"," Самира ","Айратовна","2010-05-15","ж","нет",5,5,36,63,"участник","нет","Гильмуллина Гулия Рашатовна","Муниципальное бюджетное общеобразовательное учреждение \"Многопрофильный лицей №37\" г.Нижнекамска Республики Татарстан"]
[26,"Гузаеров","Шамиль"," Раилевич","2010-05-04","м","нет",5,5,34,63,"участник","нет","Гильмуллина Гулия Рашатовна","Муниципальное бюджетное общеобразовательное учреждение \"Многопрофильный лицей №37\" г.Нижнекамска Республики Татарстан"]
[27,"Зинатуллин","Аяз ","Фаязович","2010-10-24","м","нет",5,5,33,63,"участник","нет","Гильмуллина Гулия Рашатовна","Муниципальное бюджетное общеобразовательное учреждение \"Многопрофильный лицей №37\" г.Нижнекамска Республики Татарстан"]
[28,"Зиазетдинов "," Рияз ","Ильнарович","2010-10-01","м","нет",5,5,31,63,"участник","нет","Гильмуллина Гулия Рашатовна","Муниципальное бюджетное общеобразовательное учреждение \"Многопрофильный лицей №37\" г.Нижнекамска Республики Татарстан"]
[29,"Мельникова"," Карина ","Александровна","2010-03-26","ж","нет",5,5,31,63,"участник","нет","Гильмуллина Гулия Рашатовна","Муниципальное бюджетное общеобразовательное учреждение \"Многопрофильный лицей №37\" г.Нижнекамска Республики Татарстан"]
[30,"Миннегулова","Амалия ","Альбертовна","2010-06-30","ж","нет",5,5,31,63,"участник","нет","Гильмуллина Гулия Рашатовна","Муниципальное бюджетное общеобразовательное учреждение \"Многопрофильный лицей №37\" г.Нижнекамска Республики Татарстан"]
[31,"Хамадвалиева","Ландыш","Зиннуровна","2010-09-25","ж","нет",5,5,30,63,"участник","нет","Гильмуллина Гулия Рашатовна","Муниципальное бюджетное общеобразовательное учреждение \"Многопрофильный лицей №37\" г.Нижнекамска Республики Татарстан"]
[{"$f":"A32+1","v":32},"Чутаева ","Розалина","Руслановна","2010-04-22","ж","нет",5,5,30,63,"участник","нет","Гильмуллина Гулия Рашатовна","Муниципальное бюджетное общеобразовательное учреждение \"Многопрофильный лицей №37\" г.Нижнекамска Республики Татарстан"]
[33,"Гайфутдинов "," Ислам "," Айнурович","2009-11-11","м","нет",5,5,29,63,"участник","нет","Гильмуллина Гулия Рашатовна","Муниципальное бюджетное общеобразовательное учреждение \"Многопрофильный лицей №37\" г.Нижнекамска Республики Татарстан"]
[34,"Каримов "," Ранис "," Равилевич","2009-11-18","м","нет",5,5,37,63,"участник","нет","Гильмуллина Гулия Рашатовна","Муниципальное бюджетное общеобразовательное учреждение \"Многопрофильный лицей №37\" г.Нижнекамска Республики Татарстан"]
[35,"Пещеров ","Матвей","Сергеевич","2009-04-19","м","нет",5,5,29,63,"участник","нет","Гильмуллина Гулия Рашатовна","Муниципальное бюджетное общеобразовательное учреждение \"Многопрофильный лицей №37\" г.Нижнекамска Республики Татарстан"]
[36,"Буланов ","Александр"," Алексеевич","2009-06-18","м","нет",6,6,58,81,"победитель","нет","Шарипова Софья Рамилевна","Муниципальное бюджетное общеобразовательное учреждение \"Многопрофильный лицей №37\" г.Нижнекамска Республики Татарстан"]
[37,"Ибрагимов   ","Данис","Азатович     ","2009-07-22","м","нет",6,6,47,81,"призер","нет","Шарипова Софья Рамилевна","Муниципальное бюджетное общеобразовательное учреждение \"Многопрофильный лицей №37\" г.Нижнекамска Республики Татарстан"]
[38,"Хузяхметова ","Сабина ","Рафиловна","2009-08-19","ж","нет",6,6,46,81,"призер","нет","Шарипова Софья Рамилевна","Муниципальное бюджетное общеобразовательное учреждение \"Многопрофильный лицей №37\" г.Нижнекамска Республики Татарстан"]
[39,"Аглямова ","Диля ","Ленаровна","2009-06-19","ж","нет",6,6,38,81,"участник","нет","Шарипова Софья Рамилевна","Муниципальное бюджетное общеобразовательное учреждение \"Многопрофильный лицей №37\" г.Нижнекамска Республики Татарстан"]
[40,"Залалетдинова ","Аделя ","Линаровна","2008-12-22","ж","нет",6,6,36,81,"участник","нет","Шарипова Софья Рамилевна","Муниципальное бюджетное общеобразовательное учреждение \"Многопрофильный лицей №37\" г.Нижнекамска Республики Татарстан"]
[41,"Абдуллин ","Эмир ","Эльмарович","2009-01-03","м","нет",6,6,34,81,"участник","нет","Шарипова Софья Рамилевна","Муниципальное бюджетное общеобразовательное учреждение \"Многопрофильный лицей №37\" г.Нижнекамска Республики Татарстан"]
[42,"Хоснуллин ","Камиль ","Ильшатович","2009-05-18","м","нет",6,6,34,81,"участник","нет","Шарипова Софья Рамилевна","Муниципальное бюджетное общеобразовательное учреждение \"Многопрофильный лицей №37\" г.Нижнекамска Республики Татарстан"]
[43,"Мингараева ","Залина ","Ленаровна","2009-05-12","ж","нет",6,6,31,81,"участник","нет","Шарипова Софья Рамилевна","Муниципальное бюджетное общеобразовательное учреждение \"Многопрофильный лицей №37\" г.Нижнекамска Республики Татарстан"]
[44,"Баширова","Эльвина","Ильназовна","2009-02-23","ж","нет",6,6,28,81,"участник","нет","Шарипова Софья Рамилевна","Муниципальное бюджетное общеобразовательное учреждение \"Многопрофильный лицей №37\" г.Нижнекамска Республики Татарстан"]
[45,"Юматова","Зарина","Алексеевна","2009-07-06","ж","нет",6,6,27,81,"участник","нет","Шарипова Софья Рамилевна","Муниципальное бюджетное общеобразовательное учреждение \"Многопрофильный лицей №37\" г.Нижнекамска Республики Татарстан"]
[46,"Магданурова","Ильдана","Руслановна","2009-08-05","ж","нет",6,6,22,81,"участник","нет","Шарипова Софья Рамилевна","Муниципальное бюджетное общеобразовательное учреждение \"Многопрофильный лицей №37\" г.Нижнекамска Республики Татарстан"]
[47,"Мухлисов","Айнур","Ренатович","2009-08-13","м","нет",6,6,19,81,"участник","нет","Шарипова Софья Рамилевна","Муниципальное бюджетное общеобразовательное учреждение \"Многопрофильный лицей №37\" г.Нижнекамска Республики Татарстан"]
[48,"Махмутов","Эльдар","Русланович","2009-09-07","м","нет",6,6,19,81,"участник","нет","Шарипова Софья Рамилевна","Муниципальное бюджетное общеобразовательное учреждение \"Многопрофильный лицей №37\" г.Нижнекамска Республики Татарстан"]
[49,"Габдрахманов","Наиль","Шамилевич","2009-06-15","м","нет",6,6,17,81,"участник","нет","Шарипова Софья Рамилевна","Муниципальное бюджетное общеобразовательное учреждение \"Многопрофильный лицей №37\" г.Нижнекамска Республики Татарстан"]
[50,"Миниахметова","Эльвина","Маратовна","2009-10-25","ж","нет",6,6,16,81,"участник","нет","Шарипова Софья Рамилевна","Муниципальное бюджетное общеобразовательное учреждение \"Многопрофильный лицей №37\" г.Нижнекамска Республики Татарстан"]
[51,"Муртазин","Адель","Ахтямович","2009-06-16","м","нет",6,6,15,81,"участник","нет","Шарипова Софья Рамилевна","Муниципальное бюджетное общеобразовательное учреждение \"Многопрофильный лицей №37\" г.Нижнекамска Республики Татарстан"]
[52,"Гарипова","Эльвина","Ильдаровна","2009-05-18","ж","нет",6,6,11,81,"участник","нет","Шарипова Софья Рамилевна","Муниципальное бюджетное общеобразовательное учреждение \"Многопрофильный лицей №37\" г.Нижнекамска Республики Татарстан"]
[53,"Фролова","Вероника","Сергеевна","2008-02-04","ж","нет",7,7,52,83,"победитель","нет","Усманова Рузиля Решитовна","Муниципальное бюджетное общеобразовательное учреждение \"Многопрофильный лицей №37\" г.Нижнекамска Республики Татарстан"]
[54,"Кашапова","Айсылу","Алмазовна","2007-12-27","ж","нет",7,7,48,83,"призер","нет","Усманова Рузиля Решитовна","Муниципальное бюджетное общеобразовательное учреждение \"Многопрофильный лицей №37\" г.Нижнекамска Республики Татарстан"]
[55,"Ахтямова","Диляра","Айратовна","2008-06-01","ж","нет",7,7,41,83,"участник","нет","Усманова Рузиля Решитовна","Муниципальное бюджетное общеобразовательное учреждение \"Многопрофильный лицей №37\" г.Нижнекамска Республики Татарстан"]
[56,"Буданова","Валерия","Евгеньевна","2009-03-08","ж","нет",7,7,38,83,"участник","нет","Усманова Рузиля Решитовна","Муниципальное бюджетное общеобразовательное учреждение \"Многопрофильный лицей №37\" г.Нижнекамска Республики Татарстан"]
[57,"Гарифуллина ","Алсу ","Рафисовна","2008-08-20","ж","нет",7,7,36,83,"участник","нет","Шарипова Софья Рамилевна","Муниципальное бюджетное общеобразовательное учреждение \"Многопрофильный лицей №37\" г.Нижнекамска Республики Татарстан"]
[58,"Амирова","Амина","Руслановна","2009-02-19","ж","нет",7,7,35,83,"участник","нет","Шарипова Софья Рамилевна","Муниципальное бюджетное общеобразовательное учреждение \"Многопрофильный лицей №37\" г.Нижнекамска Республики Татарстан"]
[59,"Косинский ","Артём","Алексеевич","2007-12-30","м","нет",7,7,28,83,"участник","нет","Усманова Рузиля Решитовна","Муниципальное бюджетное общеобразовательное учреждение \"Многопрофильный лицей №37\" г.Нижнекамска Республики Татарстан"]
[60,"Захаров","Артём","Сергеевич","2008-04-08","м","нет",7,7,16,83,"участник","нет","Усманова Рузиля Решитовна","Муниципальное бюджетное общеобразовательное учреждение \"Многопрофильный лицей №37\" г.Нижнекамска Республики Татарстан"]
[61,"Максимов ","Владимир ","Евгеньевич","2007-12-23","м","нет",7,7,16,83,"участник","нет","Усманова Рузиля Решитовна","Муниципальное бюджетное общеобразовательное учреждение \"Многопрофильный лицей №37\" г.Нижнекамска Республики Татарстан"]
[62," Гараев ","Булат ","Ришатович","2007-09-29","м","нет",7,7,13,83,"участник","нет","Усманова Рузиля Решитовна","Муниципальное бюджетное общеобразовательное учреждение \"Многопрофильный лицей №37\" г.Нижнекамска Республики Татарстан"]
[63,"Зевакин ","Данил ","Дмитриевич","2008-04-11","м","нет",7,7,9,83,"участник","нет","Усманова Рузиля Решитовна","Муниципальное бюджетное общеобразовательное учреждение \"Многопрофильный лицей №37\" г.Нижнекамска Республики Татарстан"]
[64,"Смирнов ","Артём","Сергеевич","2007-08-27","м","нет",8,8,68,110,"победитель","нет","Усманова Рузиля Решитовна","Муниципальное бюджетное общеобразовательное учреждение \"Многопрофильный лицей №37\" г.Нижнекамска Республики Татарстан"]
[65,"Хамидуллина ","Адиля ","Алмазовна","2007-07-24","ж","нет",8,8,58,110,"призер","нет","Усманова Рузиля Решитовна","Муниципальное бюджетное общеобразовательное учреждение \"Многопрофильный лицей №37\" г.Нижнекамска Республики Татарстан"]
[66,"Гатин ","Данис "," Ренатович","2007-05-26","м","нет",8,8,46,110,"участник","нет","Усманова Рузиля Решитовна","Муниципальное бюджетное общеобразовательное учреждение \"Многопрофильный лицей №37\" г.Нижнекамска Республики Татарстан"]
[{"$f":"A67+1","v":67},"Жаркова ","Дарья ","Дмитриевна","2007-12-20","ж","нет",8,8,34,110,"участник","нет","Усманова Рузиля Решитовна","Муниципальное бюджетное общеобразовательное учреждение \"Многопрофильный лицей №37\" г.Нижнекамска Республики Татарстан"]
[68,"Кашапов ","Рамзиль ","Рафаэлевич","2006-12-07","м","нет",8,8,34,110,"участник","нет","Усманова Рузиля Решитовна","Муниципальное бюджетное общеобразовательное учреждение \"Многопрофильный лицей №37\" г.Нижнекамска Республики Татарстан"]
[69,"Гильманова "," Камила ","Алмазовна","2006-11-11","ж","нет",8,8,31,110,"участник","нет","Усманова Рузиля Решитовна","Муниципальное бюджетное общеобразовательное учреждение \"Многопрофильный лицей №37\" г.Нижнекамска Республики Татарстан"]
[70,"Мулюков","Ильназ","Раисович","2007-03-22","м","нет",8,8,29,110,"участник","нет","Усманова Рузиля Решитовна","Муниципальное бюджетное общеобразовательное учреждение \"Многопрофильный лицей №37\" г.Нижнекамска Республики Татарстан"]
[71,"Ахметжанов ","Ислам"," Разумович","2006-11-04","м","нет",8,8,28,110,"участник","нет","Усманова Рузиля Решитовна","Муниципальное бюджетное общеобразовательное учреждение \"Многопрофильный лицей №37\" г.Нижнекамска Республики Татарстан"]
[72,"Ахунова ","Самира"," Ильсуровна","2007-03-20","ж","нет",8,8,22,110,"участник","нет","Усманова Рузиля Решитовна","Муниципальное бюджетное общеобразовательное учреждение \"Многопрофильный лицей №37\" г.Нижнекамска Республики Татарстан"]
[73,"Гильфанова ","Алсу ","Румилевна","2007-03-07","ж","нет",8,8,22,110,"участник","нет","Усманова Рузиля Решитовна","Муниципальное бюджетное общеобразовательное учреждение \"Многопрофильный лицей №37\" г.Нижнекамска Республики Татарстан"]
[74,"Петров ","Максим ","Андреевич","2007-09-21","ж","нет",8,8,19,110,"участник","нет","Усманова Рузиля Решитовна","Муниципальное бюджетное общеобразовательное учреждение \"Многопрофильный лицей №37\" г.Нижнекамска Республики Татарстан"]
[75,"Сабирзянова ","Камиля ","Ленаровна","2007-01-29","ж","нет",8,8,17,110,"участник","нет","Усманова Рузиля Решитовна","Муниципальное бюджетное общеобразовательное учреждение \"Многопрофильный лицей №37\" г.Нижнекамска Республики Татарстан"]
[76,"Гимазов ","Данил ","Ленарович","2007-05-19","м","нет",8,8,15,110,"участник","нет","Усманова Рузиля Решитовна","Муниципальное бюджетное общеобразовательное учреждение \"Многопрофильный лицей №37\" г.Нижнекамска Республики Татарстан"]
[77,"Ахметшина"," Эльвина ","Исламовна","2007-04-27","ж","нет",8,8,14,110,"участник","нет","Усманова Рузиля Решитовна","Муниципальное бюджетное общеобразовательное учреждение \"Многопрофильный лицей №37\" г.Нижнекамска Республики Татарстан"]
[78,"Калмыкова ","Дарья ","Сергеевна","2006-06-23","ж","нет",9,9,74,105,"победитель","нет","Усманова Рузиля Решитовна","Муниципальное бюджетное общеобразовательное учреждение \"Многопрофильный лицей №37\" г.Нижнекамска Республики Татарстан"]
[79,"Хилова","Юлия ","Анатольевна","2006-05-27","ж","нет",9,9,68,105,"призер","нет","Усманова Рузиля Решитовна","Муниципальное бюджетное общеобразовательное учреждение \"Многопрофильный лицей №37\" г.Нижнекамска Республики Татарстан"]
[80,"Музафарова ","Камиля ","Ленаровна","2006-10-03","ж","нет",9,9,52,105,"участник","нет","Усманова Рузиля Решитовна","Муниципальное бюджетное общеобразовательное учреждение \"Многопрофильный лицей №37\" г.Нижнекамска Республики Татарстан"]
[81,"Юдина ","Юлиана ","Владимировна","2006-08-02","ж","нет",9,9,52,105,"участник","нет","Усманова Рузиля Решитовна","Муниципальное бюджетное общеобразовательное учреждение \"Многопрофильный лицей №37\" г.Нижнекамска Республики Татарстан"]
[82,"Юлдашева ","Регина ","Рустамовна","2006-01-14","ж","нет",9,9,51,105,"участник","нет","Усманова Рузиля Решитовна","Муниципальное бюджетное общеобразовательное учреждение \"Многопрофильный лицей №37\" г.Нижнекамска Республики Татарстан"]
[83,"Петров","Станислав","Михайлович","2006-03-22","м","нет",9,9,49,105,"участник","нет","Усманова Рузиля Решитовна","Муниципальное бюджетное общеобразовательное учреждение \"Многопрофильный лицей №37\" г.Нижнекамска Республики Татарстан"]
[84,"Лумпов ","Тимур","Львович","2006-04-20","м","нет",9,9,35,105,"участник","нет","Усманова Рузиля Решитовна","Муниципальное бюджетное общеобразовательное учреждение \"Многопрофильный лицей №37\" г.Нижнекамска Республики Татарстан"]
[85,"Забродин","Данил","Максимович","2006-02-21","м","нет",9,9,33,105,"участник","нет","Усманова Рузиля Решитовна","Муниципальное бюджетное общеобразовательное учреждение \"Многопрофильный лицей №37\" г.Нижнекамска Республики Татарстан"]
[86,"Куликов ","Богдан ","Анатольевич","2006-06-09","м","нет",9,9,29,105,"участник","нет","Усманова Рузиля Решитовна","Муниципальное бюджетное общеобразовательное учреждение \"Многопрофильный лицей №37\" г.Нижнекамска Республики Татарстан"]
[87,"Валеев","Булат","Разилевич","2005-09-15","м","нет",9,9,28,105,"участник","нет","Усманова Рузиля Решитовна","Муниципальное бюджетное общеобразовательное учреждение \"Многопрофильный лицей №37\" г.Нижнекамска Республики Татарстан"]
[88,"Ваструков ","Вадим","Андреевич","2006-04-25","м","нет",9,9,18,105,"участник","нет","Усманова Рузиля Решитовна","Муниципальное бюджетное общеобразовательное учреждение \"Многопрофильный лицей №37\" г.Нижнекамска Республики Татарстан"]
[89,"Галиев ","Ильгизар","Ильнарович","27.12.205","м","нет",9,9,12,105,"участник","нет","Усманова Рузиля Решитовна","Муниципальное бюджетное общеобразовательное учреждение \"Многопрофильный лицей №37\" г.Нижнекамска Республики Татарстан"]
[90,"Алексеева ","Виктория "," Андреевна","2005-06-25","ж","нет",10,10,82,103,"победитель","нет","Усманова Рузиля Решитовна","Муниципальное бюджетное общеобразовательное учреждение \"Многопрофильный лицей №37\" г.Нижнекамска Республики Татарстан"]
[91,"Зарипова","Наргиз ","Ильгизовна","2005-09-06","ж","нет",10,10,78,103,"призер","нет","Усманова Рузиля Решитовна","Муниципальное бюджетное общеобразовательное учреждение \"Многопрофильный лицей №37\" г.Нижнекамска Республики Татарстан"]
[92,"Ягудина ","Нурия ","Анасовна","2005-03-25","ж","нет",10,10,78,103,"призер","нет","Усманова Рузиля Решитовна","Муниципальное бюджетное общеобразовательное учреждение \"Многопрофильный лицей №37\" г.Нижнекамска Республики Татарстан"]
[93,"Хасанова ","Аделя ","Ильшатовна","2005-02-16","ж","нет",10,10,69,103,"участник","нет","Усманова Рузиля Решитовна","Муниципальное бюджетное общеобразовательное учреждение \"Многопрофильный лицей №37\" г.Нижнекамска Республики Татарстан"]
[94,"Валиева ","Эльвира ","Айдаровна","2005-10-07","ж","нет",10,10,63,103,"участник","нет","Усманова Рузиля Решитовна","Муниципальное бюджетное общеобразовательное учреждение \"Многопрофильный лицей №37\" г.Нижнекамска Республики Татарстан"]
[95,"Гизатуллина ","Ильвина ","Марселевна","2005-07-08","ж","нет",10,10,54,103,"участник","нет","Усманова Рузиля Решитовна","Муниципальное бюджетное общеобразовательное учреждение \"Многопрофильный лицей №37\" г.Нижнекамска Республики Татарстан"]
[96,"Нагимова ","Алина ","Ринатовна","2005-01-25","ж","нет",10,10,52,103,"участник","нет","Усманова Рузиля Решитовна","Муниципальное бюджетное общеобразовательное учреждение \"Многопрофильный лицей №37\" г.Нижнекамска Республики Татарстан"]
[97," Котляр"," Эллина ","Олеговна","2005-10-03","ж","нет",10,10,48,103,"участник","нет","Усманова Рузиля Решитовна","Муниципальное бюджетное общеобразовательное учреждение \"Многопрофильный лицей №37\" г.Нижнекамска Республики Татарстан"]
[98,"Девятова ","Рената ","Айратовна","2005-05-23","ж","нет",10,10,46,103,"участник","нет","Усманова Рузиля Решитовна","Муниципальное бюджетное общеобразовательное учреждение \"Многопрофильный лицей №37\" г.Нижнекамска Республики Татарстан"]
[99,"Ахметшина ","Алина ","Азатовна","2005-01-25","ж","нет",10,10,37,103,"участник","нет","Усманова Рузиля Решитовна","Муниципальное бюджетное общеобразовательное учреждение \"Многопрофильный лицей №37\" г.Нижнекамска Республики Татарстан"]
[100,"Спиридонова ","Анастасия ","Владиславовна","2005-01-28","ж","нет",10,10,35,103,"участник","нет","Усманова Рузиля Решитовна","Муниципальное бюджетное общеобразовательное учреждение \"Многопрофильный лицей №37\" г.Нижнекамска Республики Татарстан"]

{"sheet":"Лист2","index":1,"n_rows":3,"n_cols":7,"rows_kept":3}
["м",null,"Победитель",null,"да",null,"Победитель"]
["ж",null,"Призер",null,"нет",null,"Призер"]
[null,null,"Участник"]